fUSD/lending_fUSD_20250824
["ID","MTS","AMOUNT","RATE_DAILY","PERIOD"]
[381127710,1756061433447,-5391.81600769,0.00018998,2]
[381127711,1756061433458,-5591.31319997,0.00019053,2]
[381127712,1756061433471,-5798.19178837,0.00019108,2]
[381127713,1756061433482,-1500.0,0.00019153,2]
[381127714,1756061433492,-6012.72488454,0.00019163,2]
[381127715,1756061433502,-150.0,0.00019217,2]
[381127716,1756061433511,-3130.58527956,0.00019218,2]
[381127717,1756061433629,-474.00639397,0.00019218,2]
[381127718,1756061433642,-1901.11694835,0.00019218,2]
[381127719,1756061433653,-600.37736759,0.00019218,2]
[381127720,1756061433666,-129.1097158,0.00019218,2]
[381127721,1756061433675,-588.10531401,0.00019242,2]
[381127722,1756061433801,-3763.65468599,0.00019242,2]
[381127723,1756061433811,-5769.42518976,0.00019273,2]
[381127724,1756061433837,-557.27465112,0.00019273,2]
[381127725,1756061433946,-139.19810549,0.00019273,2]
[381127726,1756061433956,-4573.88404807,0.00019328,2]
[381127727,1756061433967,-844.35788172,0.00019369,2]
[381127728,1756061433977,-458.63746581,0.00019369,2]
[381127729,1756061433987,-160.0,0.00019369,2]
[381127730,1756061433997,-212.11701231,0.0001937,2]
[381127731,1756061434007,-168.93,0.00019471,2]
[381127732,1756061434016,-1000.0,0.00019647,2]
[381127733,1756061434025,-150.94,0.00020099,2]
[381127734,1756061434035,-152.04,0.00020187,2]
[381127735,1756061434044,-250.0,0.00020302,2]
[381127736,1756061434054,-277.35679052,0.00020312,2]
[381127737,1756061434065,-1979.79972806,0.00020523,2]
[381127738,1756061434074,-160.63349175,0.00020535,2]
[381127739,1756061434084,-666.0,0.00020639,3]
[381127740,1756061434094,-500.2,0.00020917,7]
[381127741,1756061434103,-500.0,0.00020917,7]
[381127742,1756061434113,-500.0,0.00020917,7]
[381127743,1756061434123,-500.0,0.00020917,7]
[381127744,1756061434133,-500.0,0.00020917,7]
[381127745,1756061434144,-500.0,0.00020917,7]
[381127746,1756061434163,-500.0,0.00020917,7]
[381127747,1756061434175,-500.0,0.00020917,7]
[381127748,1756061434186,-500.0,0.00020917,7]
[381127749,1756061434197,-502.05,0.00020917,7]
[381127750,1756061434208,-285.79061402,0.00020931,2]
[381127751,1756061434221,-200.0,0.00020948,2]
[381127752,1756061434231,-322.6107,0.00020948,2]
[381127753,1756061434241,-151.0,0.00020948,2]
[381127754,1756061434250,-151.0,0.00020948,2]
[381127755,1756061434260,-151.0,0.00020948,2]
[381127756,1756061434270,-151.0,0.00020948,2]
[381127757,1756061434279,-151.0,0.00020948,2]
[381127758,1756061434288,-695.39793187,0.00020948,2]
[381127759,1756061434298,-151.0,0.00020948,2]
[381127760,1756061434307,-151.0,0.00020948,2]
[381127761,1756061434316,-160.0,0.00020948,2]
[381127762,1756061434326,-207.265879,0.00020948,2]
[381127763,1756061434335,-500.0,0.00020948,2]
[381127764,1756061434344,-172.04653108,0.00020948,2]
[381127765,1756061434353,-500.0,0.00020948,2]
[381127766,1756061434363,-500.0,0.00020948,2]
[381127767,1756061434372,-243.4305529,0.00020948,2]
[381127768,1756061434384,-151.0,0.00020948,2]
[381127769,1756061434393,-300.0,0.00020948,2]
[381127770,1756061434402,-300.0,0.00020948,2]
[381127771,1756061434412,-300.0,0.00020948,2]
[381127772,1756061434421,-300.0,0.00020948,2]
[381127773,1756061434431,-300.0,0.00020948,2]
[381127774,1756061434440,-161.0,0.00020948,2]
[381127775,1756061434450,-1000.0,0.00020948,2]
[381127776,1756061434459,-251.01324646,0.00020948,2]
[381127777,1756061434471,-3343.0,0.00020961,2]
[381127778,1756061434481,-1048.41540179,0.00021,3]
[381127779,1756061434491,-500.0,0.00021003,2]
[381127780,1756061434501,-208.0,0.0002102,2]
[381127781,1756061434511,-1000.0,0.000211,3]
[381127782,1756061434520,-1000.0,0.000211,3]
[381127783,1756061434530,-1012.0,0.000211,3]
[381127784,1756061434539,-1000.0,0.000211,4]
[381127785,1756061434549,-1000.0,0.000211,4]
[381127786,1756061434558,-1000.0,0.000211,3]
[381127787,1756061434568,-500.0,0.00021123,2]
[381127788,1756061434578,-1000.0,0.00021217,2]
[381127789,1756061434587,-150.0,0.00021217,2]
[381127790,1756061434597,-5000.63952302,0.00021259,2]
[381127791,1756061434609,-2259.30362361,0.00021259,2]
[381127792,1756061434619,-387.40121555,0.00021296,2]
[381127793,1756061434631,-2955.59878445,0.00021296,2]
[381127794,1756061434642,-2031.0,0.00021354,2]
[381127795,1756061434652,-3373.0,0.00021354,2]
[381127796,1756061434661,-866.44527546,0.00021354,2]
[381127797,1756061434677,-58.55472454,0.00021354,2]
[381127798,1756061434686,-1255.0,0.00021354,2]
[381127799,1756061434697,-1657.0,0.00021354,2]
[381127800,1756061434707,-1298.0,0.00021354,2]
[381127801,1756061434718,-566.0,0.00021354,2]
[381127802,1756061434727,-599.0,0.00021354,2]
[381127803,1756061434736,-718.0,0.00021354,2]
[381127804,1756061434745,-150.0,0.00021354,2]
[381127805,1756061434756,-6144.0,0.00021354,2]
[381127806,1756061434767,-4154.0,0.00021354,2]
[381127807,1756061434777,-21513.0,0.00021354,2]
[381127808,1756061434787,-152.44442618,0.00021379,2]
[381127809,1756061434800,-208.0,0.0002144,2]
[381127810,1756061434809,-331.6358,0.00021475,2]
[381127811,1756061434819,-1000.0,0.00021475,2]
[381127812,1756061434829,-2500.0,0.00021475,2]
[381127813,1756061434839,-4141.0,0.00021479,2]
[381127814,1756061434848,-308.41077249,0.000215,2]
[381127815,1756061434857,-239.95,0.00021565,3]
[381127816,1756061434866,-500.0,0.00021574,2]
[381127817,1756061434876,-381.10114644,0.00021574,2]
[381127818,1756061434885,-200.0,0.00021575,2]
[381127819,1756061434895,-200.0,0.00021575,2]
[381127820,1756061434904,-227.634961,0.00021575,2]
[381127821,1756061434913,-47865.78742041,0.00021575,2]
[381127822,1756061437876,-92442.01297959,0.00021575,2]
[381127823,1756061437887,-151.0,0.00021575,2]
[381127825,1756061437897,-1500.0,0.000216,2]
[381127826,1756061437908,-809.018,0.000216,2]
[381127827,1756061437919,-600.0,0.00021616,2]
[381127828,1756061437930,-200.0,0.00021643,2]
[381127829,1756061437941,-539.59,0.00021644,2]
[381127830,1756061437952,-150.9,0.00021644,2]
[381127832,1756061437963,-300.65,0.00021644,2]
[381127834,1756061437975,-150.0,0.00021644,2]
[381127836,1756061437985,-150.0,0.00021644,2]
[381127838,1756061437996,-408.42,0.00021644,2]
[381127840,1756061438007,-1184.83,0.00021644,2]
[381127843,1756061438018,-539.59,0.00021644,2]
[381127845,1756061438029,-150.0,0.00021644,2]
[381127847,1756061438039,-287.61899177,0.00021681,2]
[381127849,1756061438050,-2488.93375195,0.00021717,2]
[381127852,1756061438061,-9426.99683718,0.00021717,2]
[381127854,1756061438071,-308.41077246,0.0002178,2]
[381127856,1756061438082,-9426.99683716,0.00021789,2]
[381127858,1756061438094,-613.0697,0.00021817,2]
[381127860,1756061438105,-5000.0,0.00021817,2]
[381127862,1756061438116,-822.97853998,0.00021817,2]
[381127864,1756061438127,-2103.75040766,0.00021817,2]
[381127866,1756061438140,-208.0,0.0002186,2]
[381127867,1756061438152,-9426.99683716,0.00021861,2]
[381127870,1756061438163,-150.32602629,0.00021865,2]
[381127872,1756061438174,-150.0,0.00021865,2]
[381127873,1756061438185,-200.0,0.00021865,2]
[381127876,1756061438196,-150.0,0.00021865,2]
[381127877,1756061438206,-150.0,0.00021865,2]
[381127880,1756061438215,-150.0,0.00021865,2]
[381127881,1756061438230,-150.41158014,0.00021865,2]
[381127883,1756061438240,-150.0,0.00021865,2]
[381127886,1756061438250,-500.0,0.00021865,2]
[381127888,1756061438260,-150.0,0.00021865,2]
[381127890,1756061438273,-150.0,0.00021865,2]
[381127892,1756061438283,-150.0,0.00021865,2]
[381127894,1756061438293,-150.0,0.00021865,2]
[381127896,1756061438303,-150.0,0.00021865,2]
[381127898,1756061438313,-150.0,0.00021865,2]
[381127900,1756061438323,-150.0,0.00021865,2]
[381127902,1756061438332,-150.0,0.00021865,2]
[381127903,1756061438341,-150.0,0.00021865,2]
[381127906,1756061438351,-150.0,0.00021865,2]
[381127908,1756061438361,-150.0,0.00021865,2]
[381127910,1756061438370,-182.76153559,0.00021899,2]
[381127912,1756061438379,-3423.78081805,0.000219,2]
[381127914,1756061438388,-393.75937542,0.00021907,2]
[381127916,1756061438398,-303.1894074,0.00021909,2]
[381127918,1756061438407,-1149.336932,0.00021909,2]
[381127920,1756061438417,-2833.37,0.00021915,2]
[381127922,1756061438426,-400.0,0.00021916,2]
[381127924,1756061438435,-2537.9,0.00021916,2]
[381127926,1756061438445,-150.0,0.00021916,2]
[381127927,1756061438454,-300.0,0.00021916,2]
[381127930,1756061438464,-300.0,0.00021916,2]
[381127932,1756061438477,-151.0,0.00021917,2]
[381127934,1756061438487,-506.0,0.00021917,2]
[381127936,1756061438496,-11309.87975623,0.00021917,8]
[381127938,1756061438507,-130965.38880986,0.00021917,2]
[381127940,1756061438521,-302.0,0.00021917,2]
[381127942,1756061438531,-500.0,0.00021917,2]
[381127944,1756061438540,-500.0,0.00021917,2]
[381127946,1756061438549,-500.0,0.00021917,2]
[381127948,1756061438558,-500.0,0.00021917,2]
[381127950,1756061438569,-500.0,0.00021917,2]
[381127952,1756061438578,-500.0,0.00021917,2]
[381127954,1756061438587,-500.0,0.00021917,2]
[381127956,1756061438596,-500.0,0.00021917,2]
[381127958,1756061438606,-500.0,0.00021917,2]
[381127960,1756061438615,-400.0,0.00021917,2]
[381127962,1756061438624,-400.0,0.00021917,2]
[381127964,1756061438633,-400.0,0.00021917,2]
[381127966,1756061438642,-400.0,0.00021917,2]
[381127968,1756061438651,-400.0,0.00021917,2]
[381127970,1756061438661,-3537.1191455,0.00021917,2]
[381127972,1756061438675,-400.0,0.00021917,2]
[381127974,1756061438687,-401.90573418,0.00021917,2]
[381127976,1756061438697,-228.20525037,0.00021917,2]
[381127978,1756061438706,-400.0,0.00021917,2]
[381127980,1756061438716,-400.0,0.00021917,2]
[381127982,1756061438727,-400.0,0.00021917,2]
[381127984,1756061438737,-400.0,0.00021917,2]
[381127986,1756061438746,-400.0,0.00021917,2]
[381127988,1756061438756,-454.72362136,0.00021917,2]
[381127990,1756061438765,-400.0,0.00021917,2]
[381127992,1756061438775,-400.0,0.00021917,2]
[381127994,1756061438785,-400.0,0.00021917,2]
[381127996,1756061438795,-402.09778106,0.00021917,2]
[381127998,1756061438807,-400.0,0.00021917,2]
[381128000,1756061438816,-400.0,0.00021917,2]
[381128002,1756061438826,-400.0,0.00021917,2]
[381128004,1756061438837,-1027.89,0.00021917,2]
[381128006,1756061438846,-400.0,0.00021917,2]
[381128008,1756061438855,-400.0,0.00021917,2]
[381128010,1756061438866,-500.0,0.00021917,2]
[381128012,1756061438876,-400.0,0.00021917,2]
[381128015,1756061438886,-400.0,0.00021917,2]
[381128017,1756061438895,-400.0,0.00021917,2]
[381128019,1756061438905,-400.0,0.00021917,2]
[381128021,1756061438914,-400.0,0.00021917,2]
[381128023,1756061438924,-400.0,0.00021917,2]
[381128025,1756061438933,-400.0,0.00021917,2]
[381128027,1756061438942,-400.0,0.00021917,2]
[381128029,1756061438951,-400.0,0.00021917,2]
[381128031,1756061438962,-400.0,0.00021917,2]
[381128033,1756061438973,-400.0,0.00021917,2]
[381128035,1756061438982,-400.0,0.00021917,2]
[381128037,1756061438991,-400.0,0.00021917,2]
[381128039,1756061439001,-400.0,0.00021917,2]
[381128041,1756061439011,-400.0,0.00021917,2]
[381128043,1756061439020,-400.0,0.00021917,2]
[381128045,1756061439029,-400.0,0.00021917,2]
[381128046,1756061439038,-400.0,0.00021917,2]
[381128048,1756061439047,-400.0,0.00021917,2]
[381128050,1756061439056,-400.0,0.00021917,2]
[381128052,1756061439066,-466.63,0.00021917,2]
[381128054,1756061439075,-400.0,0.00021917,2]
[381128056,1756061439084,-400.0,0.00021917,2]
[381128058,1756061439094,-400.0,0.00021917,2]
[381128060,1756061439104,-400.0,0.00021917,2]
[381128062,1756061439113,-400.0,0.00021917,2]
[381128064,1756061439123,-647.65,0.00021917,2]
[381128066,1756061439132,-400.0,0.00021917,2]
[381128068,1756061439141,-1081.66,0.00021917,2]
[381128070,1756061439151,-400.0,0.00021917,2]
[381128072,1756061439161,-400.0,0.00021917,2]
[381128074,1756061439179,-400.0,0.00021917,2]
[381128076,1756061439189,-816.79,0.00021917,2]
[381128078,1756061439200,-300.0,0.00021917,2]
[381128079,1756061439210,-754.49,0.00021917,2]
[381128080,1756061439219,-400.0,0.00021917,2]
[381128081,1756061439231,-400.0,0.00021917,2]
[381128082,1756061439241,-1357.79,0.00021917,2]
[381128083,1756061439251,-781.54,0.00021917,2]
[381128084,1756061439260,-400.0,0.00021917,2]
[381128085,1756061439269,-400.0,0.00021917,2]
[381128086,1756061439279,-400.0,0.00021917,2]
[381128087,1756061439288,-400.0,0.00021917,2]
[381128088,1756061439297,-400.0,0.00021917,2]
[381128089,1756061439306,-711.51,0.00021917,2]
[381128090,1756061439315,-400.0,0.00021917,2]
[381128091,1756061439324,-400.0,0.00021917,2]
[381128092,1756061439333,-664.95,0.00021917,2]
[381128093,1756061439342,-400.0,0.00021917,2]
[381128094,1756061439351,-1651.65,0.00021917,2]
[381128095,1756061439361,-400.0,0.00021917,2]
[381128096,1756061439370,-400.0,0.00021917,2]
[381128097,1756061439379,-943.95,0.00021917,2]
[381128098,1756061439389,-1087.43,0.00021917,2]
[381128099,1756061439399,-770.14,0.00021917,2]
[381128101,1756061439409,-400.0,0.00021917,2]
[381128103,1756061439419,-400.0,0.00021917,2]
[381128105,1756061439428,-400.0,0.00021917,2]
[381128108,1756061439437,-400.0,0.00021917,2]
[381128110,1756061439447,-1412.84,0.00021917,2]
[381128112,1756061439456,-400.0,0.00021917,2]
[381128114,1756061439465,-516.13,0.00021917,2]
[381128116,1756061439476,-1182.6,0.00021917,2]
[381128119,1756061439486,-806.37,0.00021917,2]
[381128122,1756061439495,-434.39,0.00021917,2]
[381128124,1756061439505,-400.0,0.00021917,2]
[381128126,1756061439515,-400.0,0.00021917,2]
[381128128,1756061439524,-400.0,0.00021917,2]
[381128130,1756061439533,-633.82,0.00021917,2]
[381128133,1756061439542,-400.0,0.00021917,2]
[381128135,1756061439551,-400.0,0.00021917,2]
[381128137,1756061439560,-733.44,0.00021917,2]
[381128139,1756061439569,-440.91,0.00021917,2]
[381128141,1756061439578,-400.0,0.00021917,2]
[381128143,1756061439587,-618.82,0.00021917,2]
[381128146,1756061439597,-400.0,0.00021917,2]
[381128149,1756061439607,-400.0,0.00021917,2]
[381128152,1756061439616,-400.0,0.00021917,2]
[381128155,1756061439625,-400.0,0.00021917,2]
[381128157,1756061439635,-732.31,0.00021917,2]
[381128160,1756061439644,-400.0,0.00021917,2]
[381128163,1756061439653,-940.61,0.00021917,2]
[381128166,1756061439662,-501.59,0.00021917,2]
[381128169,1756061439672,-815.67,0.00021917,2]
[381128172,1756061439682,-400.0,0.00021917,2]
[381128175,1756061439691,-400.0,0.00021917,2]
[381128178,1756061439700,-400.0,0.00021917,2]
[381128181,1756061439710,-400.0,0.00021917,2]
[381128184,1756061439720,-424.19,0.00021917,2]
[381128187,1756061439732,-400.0,0.00021917,2]
[381128190,1756061439741,-829.21,0.00021917,2]
[381128194,1756061439751,-520.15,0.00021917,2]
[381128197,1756061439760,-984.43,0.00021917,2]
[381128200,1756061439770,-400.0,0.00021917,2]
[381128203,1756061439779,-400.0,0.00021917,2]
[381128206,1756061439790,-331.09532317,0.00021917,2]
[381128209,1756061439801,-400.0,0.00021917,2]
[381128212,1756061439811,-400.0,0.00021917,2]
[381128215,1756061439820,-701.26,0.00021917,2]
[381128218,1756061439831,-400.71082284,0.00021917,2]
[381128221,1756061439840,-610.67,0.00021917,2]
[381128224,1756061439849,-438.68,0.00021917,2]
[381128227,1756061439858,-406.77,0.00021917,2]
[381128230,1756061439867,-400.0,0.00021917,2]
[381128233,1756061439879,-785.82,0.00021917,2]
[381128236,1756061439888,-570.75,0.00021917,2]
[381128239,1756061439897,-400.0,0.00021917,2]
[381128242,1756061439906,-400.0,0.00021917,2]
[381128245,1756061439915,-738.19,0.00021917,2]
[381128248,1756061439925,-432.32,0.00021917,2]
[381128251,1756061439935,-400.0,0.00021917,2]
[381128254,1756061439944,-780.44,0.00021917,2]
[381128257,1756061439953,-400.0,0.00021917,2]
[381128259,1756061439963,-852.42,0.00021917,2]
[381128261,1756061439972,-400.0,0.00021917,2]
[381128263,1756061439983,-400.0,0.00021917,2]
[381128265,1756061439993,-400.0,0.00021917,2]
[381128266,1756061440003,-400.0,0.00021917,2]
[381128269,1756061440014,-424.25,0.00021917,2]
[381128271,1756061440023,-729.83,0.00021917,2]
[381128273,1756061440032,-400.0,0.00021917,2]
[381128275,1756061440042,-949.84,0.00021917,2]
[381128277,1756061440051,-400.0,0.00021917,2]
[381128279,1756061440060,-1480.61,0.00021917,2]
[381128281,1756061440069,-1194.37,0.00021917,2]
[381128283,1756061440079,-996.17,0.00021917,2]
[381128285,1756061440088,-400.0,0.00021917,2]
[381128287,1756061440098,-400.0,0.00021917,2]
[381128289,1756061440108,-400.0,0.00021917,2]
[381128290,1756061440117,-400.0,0.00021917,2]
[381128292,1756061440127,-400.0,0.00021917,2]
[381128294,1756061440138,-628.88,0.00021917,2]
[381128322,1756061440407,-400.0,0.00021917,2]
[381128326,1756061440439,-400.0,0.00021917,2]
[381128328,1756061440450,-400.0,0.00021917,2]
[381128330,1756061440459,-426.19,0.00021917,2]
[381128332,1756061440469,-910.4,0.00021917,2]
[381128334,1756061440480,-658.62,0.00021917,2]
[381128336,1756061440490,-400.0,0.00021917,2]
[381128338,1756061440499,-422.04,0.00021917,2]
[381128340,1756061440509,-400.0,0.00021917,2]
[381128342,1756061440519,-400.0,0.00021917,2]
[381128344,1756061440529,-400.0,0.00021917,2]
[381128346,1756061440538,-400.0,0.00021917,2]
[381128348,1756061440548,-400.0,0.00021917,2]
[381128350,1756061440558,-400.0,0.00021917,2]
[381128352,1756061440568,-821.97,0.00021917,2]
[381128354,1756061440577,-151.0,0.00021917,2]
[381128356,1756061440586,-151.0,0.00021917,2]
[381128358,1756061440596,-285.842076,0.00021917,2]
[381128361,1756061440605,-536.77,0.00021917,2]
[381128362,1756061440615,-343.2087695,0.00021917,2]
[381128364,1756061440624,-464.27412472,0.00021917,2]
[381128366,1756061440633,-774.43,0.00021917,2]
[381128369,1756061440643,-400.0,0.00021917,2]
[381128371,1756061440652,-687.17,0.00021917,2]
[381128373,1756061440661,-400.0,0.00021917,2]
[381128375,1756061440670,-400.0,0.00021917,2]
[381128377,1756061440682,-400.0,0.00021917,2]
[381128379,1756061440691,-1085.11,0.00021917,2]
[381128381,1756061440700,-485.56,0.00021917,2]
[381128383,1756061440709,-823.8,0.00021917,2]
[381128385,1756061440719,-400.0,0.00021917,2]
[381128387,1756061440731,-625.72,0.00021917,2]
[381128389,1756061440740,-151.0,0.00021917,2]
[381128391,1756061440749,-400.0,0.00021917,2]
[381128393,1756061440758,-151.0,0.00021917,2]
[381128395,1756061440768,-151.0,0.00021917,2]
[381128397,1756061440777,-182.1588,0.00021917,2]
[381128399,1756061440788,-614.98,0.00021917,2]
[381128401,1756061440800,-151.0,0.00021917,2]
[381128403,1756061440809,-151.0,0.00021917,2]
[381128404,1756061440818,-151.0,0.00021917,2]
[381128406,1756061440827,-555.31,0.00021917,2]
[381128408,1756061440838,-549.61,0.00021917,2]
[381128410,1756061440847,-1425.69,0.00021917,2]
[381128412,1756061440856,-400.0,0.00021917,2]
[381128414,1756061440866,-400.0,0.00021917,2]
[381128416,1756061440877,-400.0,0.00021917,2]
[381128418,1756061440886,-400.0,0.00021917,2]
[381128420,1756061440895,-852.32,0.00021917,2]
[381128422,1756061440904,-400.0,0.00021917,2]
[381128424,1756061440913,-622.65,0.00021917,2]
[381128426,1756061440922,-400.0,0.00021917,2]
[381128428,1756061440931,-902.34,0.00021917,2]
[381128430,1756061440941,-400.0,0.00021917,2]
[381128432,1756061440950,-400.0,0.00021917,2]
[381128434,1756061440959,-1082.07,0.00021917,2]
[381128436,1756061440968,-1613.99,0.00021917,2]
[381128438,1756061440978,-400.0,0.00021917,2]
[381128440,1756061440987,-599.76,0.00021917,2]
[381128442,1756061440997,-400.0,0.00021917,2]
[381128444,1756061441007,-400.57148798,0.00021917,2]
[381128446,1756061441016,-500.72,0.00021917,2]
[381128448,1756061441026,-436.07,0.00021917,2]
[381128450,1756061441035,-400.0,0.00021917,2]
[381128452,1756061441045,-400.0,0.00021917,2]
[381128454,1756061441055,-678.13,0.00021917,2]
[381128456,1756061441064,-400.0,0.00021917,2]
[381128458,1756061441073,-422.35,0.00021917,2]
[381128460,1756061441083,-1146.51,0.00021917,2]
[381128462,1756061441092,-605.48,0.00021917,2]
[381128464,1756061441101,-400.0,0.00021917,2]
[381128466,1756061441111,-183.93911123,0.00021917,2]
[381128468,1756061441120,-400.0,0.00021917,2]
[381128470,1756061441129,-400.0,0.00021917,2]
[381128472,1756061441138,-910.17,0.00021917,2]
[381128474,1756061441148,-1436.48,0.00021917,2]
[381128476,1756061441157,-1873.1712026,0.00021917,2]
[381128478,1756061441167,-1017.59,0.00021917,2]
[381128480,1756061441176,-400.0,0.00021917,2]
[381128482,1756061441186,-910.99,0.00021917,2]
[381128484,1756061441195,-400.0,0.00021917,2]
[381128486,1756061441205,-151.0,0.00021917,2]
[381128488,1756061441215,-624.44,0.00021917,2]
[381128490,1756061441225,-1401.48,0.00021917,2]
[381128492,1756061441235,-485.01,0.00021917,2]
[381128494,1756061441244,-400.0,0.00021917,2]
[381128496,1756061441254,-878.83,0.00021917,2]
[381128498,1756061441264,-400.0,0.00021917,2]
[381128500,1756061441273,-802.62,0.00021917,2]
[381128502,1756061441283,-475.82,0.00021917,2]
[381128504,1756061441292,-947.51,0.00021917,2]
[381128506,1756061441301,-400.0,0.00021917,2]
[381128508,1756061441310,-1028.51,0.00021917,2]
[381128511,1756061441326,-400.0,0.00021917,2]
[381128513,1756061441341,-750.23,0.00021917,2]
[381128514,1756061441350,-400.0,0.00021917,2]
[381128517,1756061441360,-678.04,0.00021917,2]
[381128518,1756061441369,-400.0,0.00021917,2]
[381128521,1756061441379,-400.0,0.00021917,2]
[381128523,1756061441388,-613.81,0.00021917,2]
[381128525,1756061441398,-492.65,0.00021917,2]
[381128527,1756061441408,-400.0,0.00021917,2]
[381128529,1756061441417,-681.58,0.00021917,2]
[381128531,1756061441426,-400.0,0.00021917,2]
[381128533,1756061441436,-400.0,0.00021917,2]
[381128535,1756061441445,-400.0,0.00021917,2]
[381128537,1756061441456,-400.0,0.00021917,2]
[381128538,1756061441465,-470.93,0.00021917,2]
[381128540,1756061441474,-400.0,0.00021917,2]
[381128543,1756061441485,-400.0,0.00021917,2]
[381128544,1756061441494,-400.0,0.00021917,2]
[381128546,1756061441504,-1216.37,0.00021917,2]
[381128548,1756061441513,-400.0,0.00021917,2]
[381128550,1756061441523,-539.35,0.00021917,2]
[381128552,1756061441533,-400.0,0.00021917,2]
[381128554,1756061441542,-400.0,0.00021917,2]
[381128556,1756061441551,-897.72,0.00021917,2]
[381128558,1756061441560,-400.0,0.00021917,2]
[381128560,1756061441569,-400.0,0.00021917,2]
[381128562,1756061441578,-766.73,0.00021917,2]
[381128564,1756061441588,-400.0,0.00021917,2]
[381128566,1756061441597,-400.0,0.00021917,2]
[381128568,1756061441606,-470.34,0.00021917,2]
[381128570,1756061441615,-400.0,0.00021917,2]
[381128572,1756061441625,-400.0,0.00021917,2]
[381128574,1756061441634,-916.69,0.00021917,2]
[381128576,1756061441643,-400.0,0.00021917,2]
[381128578,1756061441652,-400.0,0.00021917,2]
[381128580,1756061441662,-586.11,0.00021917,2]
[381128582,1756061441670,-400.0,0.00021917,2]
[381128584,1756061441679,-400.0,0.00021917,2]
[381128586,1756061441689,-735.1,0.00021917,2]
[381128588,1756061441698,-400.0,0.00021917,2]
[381128591,1756061441707,-584.26,0.00021917,2]
[381128592,1756061441716,-400.0,0.00021917,2]
[381128594,1756061441727,-477.83,0.00021917,2]
[381128596,1756061441736,-400.0,0.00021917,2]
[381128598,1756061441746,-683.06,0.00021917,2]
[381128600,1756061441755,-709.6,0.00021917,2]
[381128602,1756061441764,-400.0,0.00021917,2]
[381128604,1756061441774,-841.16,0.00021917,2]
[381128606,1756061441784,-400.0,0.00021917,2]
[381128608,1756061441794,-483.61,0.00021917,2]
[381128610,1756061441808,-1378.36,0.00021917,2]
[381128612,1756061441817,-400.0,0.00021917,2]
[381128615,1756061441829,-400.0,0.00021917,2]
[381128617,1756061441840,-530.34,0.00021917,2]
[381128618,1756061441849,-400.0,0.00021917,2]
[381128621,1756061441859,-400.0,0.00021917,2]
[381128623,1756061441870,-1463.58,0.00021917,2]
[381128625,1756061441879,-1000.17,0.00021917,2]
[381128627,1756061441889,-1000.17,0.00021917,2]
[381128629,1756061441899,-1000.17,0.00021917,2]
[381128631,1756061441909,-400.0,0.00021917,2]
[381128632,1756061441920,-1000.17,0.00021917,2]
[381128634,1756061441930,-1000.17,0.00021917,2]
[381128636,1756061441941,-1000.17,0.00021917,2]
[381128638,1756061441951,-1000.17,0.00021917,2]
[381128640,1756061441961,-1000.17,0.00021917,2]